bitfinex/quotes_BTCUSD_20240703
["timestamp","ask_amount","ask_price","bid_price","bid_amount"]
[1720009794552,0.31549261,60327.0,60326.0,0.041948]
[1720009794957,0.19042602,60327.0,60326.0,0.24657417]
[1720009795182,0.09042602,60327.0,60326.0,0.24657417]
[1720009795387,0.09042743,60327.0,60326.0,0.24657417]
[1720009796162,0.0185,60338.0,60331.0,0.08427537]
[1720009796163,0.2386,60337.0,60331.0,0.08427537]
[1720009796383,0.2386,60337.0,60336.0,0.039948]
[1720009797587,0.2416,60337.0,60336.0,0.039948]
[1720009798125,0.2446,60337.0,60336.0,0.040948]
[1720009798299,0.3446,60337.0,60336.0,0.040948]
[1720009798474,0.3516,60337.0,60336.0,0.040948]
[1720009798685,0.3516,60337.0,60336.0,0.07358554]
[1720009798838,0.11699219,60337.0,60336.0,0.07258554]
[1720009799233,0.11699219,60337.0,60336.0,0.039948]
[1720009799356,0.01999219,60337.0,60336.0,0.039948]
[1720009799772,0.01999219,60337.0,60336.0,0.2002468]
[1720009800741,0.01973263,60337.0,60336.0,0.2002468]
[1720009800970,0.01973263,60337.0,60336.0,0.1602988]
[1720009801170,0.01973263,60337.0,60333.0,0.04432737]
[1720009801171,0.25833263,60337.0,60333.0,0.04432737]
[1720009801296,0.11673263,60336.0,60334.0,0.1602988]
[1720009801495,0.01673263,60335.0,60334.0,0.2002468]
[1720009801695,0.01673263,60335.0,60334.0,0.1602988]
[1720009802340,0.01673263,60335.0,60333.0,0.04432737]
[1720009802564,0.08310154,60335.0,60333.0,0.04432737]
[1720009803006,0.08310154,60335.0,60334.0,0.56192999]
[1720009803210,0.0185,60356.0,60349.0,0.039948]
[1720009803407,0.04065945,60359.0,60349.0,0.24457417]
[1720009803408,0.0185,60359.0,60349.0,0.24457417]
[1720009803820,0.01461512,60350.0,60349.0,0.24457417]
[1720009804043,0.02839172,60350.0,60349.0,0.24457417]
[1720009804252,0.02839172,60350.0,60349.0,0.47047417]
[1720009804454,0.01461512,60350.0,60349.0,0.50378782]
[1720009804668,0.01461512,60350.0,60349.0,0.82678782]
[1720009804911,0.01461512,60350.0,60349.0,0.80047417]
[1720009805113,0.01461512,60350.0,60349.0,0.80347417]
[1720009805319,0.00836,60376.0,60374.0,0.08427537]
[1720009805320,0.16746145,60375.0,60374.0,0.08427537]
[1720009805515,0.00836,60376.0,60375.0,0.04432737]
[1720009805694,0.02213896,60376.0,60375.0,0.08427537]
[1720009806034,0.02213896,60376.0,60374.0,0.04432737]
[1720009806271,0.11243469,60375.0,60374.0,0.04432737]
[1720009806473,0.11243469,60375.0,60361.0,0.1057]
[1720009806474,0.36395016,60375.0,60368.0,0.04432737]
[1720009806679,0.01377887,60374.0,60368.0,0.04432737]
[1720009806889,0.00836,60376.0,60368.0,0.04432737]
[1720009806890,0.01377887,60373.0,60368.0,0.04432737]
[1720009807073,0.01377887,60373.0,60353.0,0.1349]
[1720009807074,0.01377887,60373.0,60372.0,0.08427537]
[1720009807386,0.00836,60376.0,60374.0,0.04432737]
[1720009807600,0.00836,60376.0,60374.0,0.08427537]
[1720009807767,0.00836,60376.0,60375.0,0.08427537]
[1720009808001,0.00836,60376.0,60375.0,0.24457417]
[1720009808111,0.00836,60376.0,60375.0,0.26936284]
[1720009808315,0.00836,60376.0,60375.0,0.27267503]
[1720009808540,0.00836,60376.0,60375.0,0.24457417]
[1720009808936,0.00936,60376.0,60375.0,0.24457417]
[1720009809638,0.00936,60376.0,60375.0,0.25257417]
[1720009809862,0.00836,60376.0,60375.0,0.25257417]
[1720009810290,0.00936,60376.0,60375.0,0.26057417]
[1720009810469,0.00936,60376.0,60375.0,0.28963159]
[1720009810683,0.00936,60376.0,60375.0,0.26057417]
[1720009811290,0.00936,60376.0,60375.0,0.29057417]
[1720009812093,0.00936,60376.0,60375.0,0.26057417]
[1720009812908,0.00936,60376.0,60375.0,0.06032737]
[1720009813157,0.00936,60376.0,60375.0,0.016]
[1720009813332,0.036926,60376.0,60375.0,0.016]
[1720009813534,0.00936,60376.0,60375.0,0.016]
[1720009814292,0.00836,60376.0,60375.0,0.008]
[1720009814499,0.01036,60376.0,60375.0,0.008]
[1720009815382,0.01036,60376.0,60368.0,0.04432737]
[1720009815581,0.01036,60376.0,60366.0,0.04432737]
[1720009815582,0.2386,60373.0,60366.0,0.04432737]
[1720009815786,0.060582,60375.0,60366.0,0.04432737]
[1720009815787,0.2386,60367.0,60366.0,0.04432737]
[1720009816074,0.3386,60367.0,60366.0,0.08427537]
[1720009816272,0.3386,60367.0,60366.0,0.04432737]
[1720009817191,0.3386,60367.0,60362.0,0.04432737]
[1720009817192,0.0185,60366.0,60362.0,0.04432737]
[1720009817379,0.1185,60366.0,60362.0,0.04432737]
[1720009817534,0.1185,60366.0,60346.0,0.1156246]
[1720009817535,0.1185,60366.0,60364.0,0.04432737]
[1720009817776,0.2386,60365.0,60364.0,0.04432737]
[1720009817980,0.3386,60365.0,60364.0,0.04432737]
[1720009818226,0.3386,60365.0,60364.0,0.08427537]
[1720009818565,0.3386,60365.0,60361.0,0.04432737]
[1720009818759,0.3386,60365.0,60364.0,0.04432737]
[1720009819810,0.3386,60365.0,60364.0,0.08427537]
[1720009820003,0.3386,60365.0,60364.0,0.08627537]
[1720009820460,0.3386,60365.0,60364.0,0.08427537]
[1720009820593,0.3386,60365.0,60364.0,0.04732737]
[1720009820975,0.3386,60365.0,60364.0,0.08727537]
[1720009821346,0.3386,60365.0,60364.0,0.08427537]
[1720009821933,0.1,60365.0,60364.0,0.08427537]
[1720009822097,0.1,60370.0,60369.0,0.039948]
[1720009823324,0.1,60370.0,60369.0,0.08427537]
[1720009823523,0.101,60370.0,60369.0,0.08427537]
[1720009823965,0.102,60370.0,60369.0,0.08427537]
[1720009824366,0.102,60370.0,60369.0,0.24457417]
[1720009824367,0.101,60370.0,60369.0,0.24457417]
[1720009824633,0.101,60370.0,60369.0,0.26936288]
[1720009824841,0.001,60370.0,60369.0,0.26936288]
[1720009825044,0.24696,60376.0,60375.0,0.03]
[1720009825277,0.34696,60376.0,60371.0,0.04432737]
[1720009825488,0.2386,60372.0,60371.0,0.04432737]
[1720009825725,0.3386,60372.0,60371.0,0.04432737]
[1720009827913,0.3386,60372.0,60371.0,0.08427537]
[1720009828134,0.3416,60372.0,60371.0,0.08427537]
[1720009828482,0.3416,60372.0,60371.0,0.04432737]
[1720009828709,0.3416,60372.0,60371.0,0.08427537]
[1720009829121,0.3436,60372.0,60371.0,0.08427537]
[1720009829539,0.3386,60372.0,60371.0,0.08427537]
[1720009829716,0.3386,60372.0,60371.0,0.08627537]
[1720009829897,0.3386,60372.0,60371.0,0.09327537]
[1720009830302,0.3386,60372.0,60371.0,0.09127537]
[1720009830714,0.3386,60372.0,60371.0,0.09827537]
[1720009830715,0.3396,60372.0,60371.0,0.09827537]
[1720009830916,0.101,60372.0,60371.0,0.26840171]
[1720009831102,0.101,60372.0,60371.0,0.49137417]
[1720009831103,0.001,60372.0,60371.0,0.49137417]
[1720009832943,0.001,60372.0,60371.0,0.52137417]
[1720009833172,0.001,60372.0,60371.0,0.49137417]
[1720009835757,0.001,60372.0,60371.0,0.52137417]
[1720009837331,0.001,60372.0,60371.0,0.49137417]
[1720009840363,0.00183,60372.0,60371.0,0.49137417]
[1720009840565,0.00183,60372.0,60371.0,0.52137417]
[1720009842699,0.00836,60376.0,60375.0,0.34847537]
[1720009842902,0.00836,60376.0,60375.0,0.50877417]
[1720009844099,0.00936,60376.0,60375.0,0.53277417]
[1720009844306,0.11390251,60387.0,60386.0,0.039948]
[1720009844518,0.13914255,60387.0,60386.0,0.039948]
[1720009845057,0.13914255,60387.0,60386.0,0.145448]
[1720009845457,0.13914255,60387.0,60386.0,0.039948]
[1720009846146,0.14576741,60387.0,60386.0,0.039948]
[1720009846344,0.24576741,60387.0,60386.0,0.039948]
[1720009846703,0.24576741,60387.0,60386.0,0.041948]
[1720009847952,0.24576741,60387.0,60386.0,0.043948]
[1720009849187,0.21390251,60387.0,60386.0,0.043948]
[1720009849390,0.2419686,60387.0,60386.0,0.043948]
[1720009850194,0.2419686,60387.0,60386.0,0.21307434]
[1720009850394,0.12806609,60387.0,60386.0,0.38447417]
[1720009850595,0.02806609,60387.0,60386.0,0.38247417]
[1720009850812,0.02806609,60387.0,60386.0,0.39247417]
[1720009851242,0.02806609,60387.0,60386.0,0.38747417]
[1720009851368,0.02806609,60387.0,60386.0,0.39747417]
[1720009852452,0.02796587,60387.0,60386.0,0.39747417]
[1720009852645,0.02796587,60387.0,60386.0,0.39247417]
[1720009853068,0.02796587,60387.0,60386.0,0.26457417]
[1720009854807,0.02796587,60387.0,60386.0,0.26467417]
[1720009855341,0.00836,60388.0,60386.0,0.26467417]
[1720009855709,0.00836,60388.0,60387.0,0.24457417]
[1720009856258,0.03633557,60388.0,60387.0,0.24457417]
[1720009857260,0.03633557,60388.0,60387.0,0.26257417]
[1720009858627,0.03625899,60388.0,60387.0,0.26257417]
[1720009860905,0.08439373,60388.0,60387.0,0.06232737]
[1720009861164,0.11229272,60388.0,60387.0,0.06232737]
[1720009861304,0.21227121,60388.0,60387.0,0.06232737]
[1720009863261,0.27949397,60388.0,60387.0,0.018]
[1720009863745,0.37956759,60388.0,60387.0,0.018]
[1720009863863,0.21227121,60388.0,60387.0,0.018]
[1720009864303,0.21227121,60388.0,60387.0,0.009]
[1720009864304,0.10836,60388.0,60387.0,0.009]
[1720009864503,0.21112289,60388.0,60387.0,0.009]
[1720009864952,0.15406,60388.0,60386.0,0.0002]
[1720009865254,0.44344662,60387.0,60386.0,0.0002]
[1720009865460,0.49173473,60387.0,60386.0,0.0002]
[1720009865655,0.51846229,60387.0,60386.0,0.0002]
[1720009866439,0.44034471,60387.0,60386.0,0.0002]
[1720009867289,0.46734471,60387.0,60386.0,0.0002]
[1720009867707,0.46834471,60387.0,60386.0,0.0002]
[1720009867900,0.3666,60387.0,60386.0,0.0002]
[1720009868127,0.76798739,60387.0,60386.0,0.0002]
[1720009868326,0.99675797,60387.0,60386.0,0.0002]
[1720009868670,1.29675797,60387.0,60386.0,0.00012769]
[1720009868885,0.3457,60381.0,60370.0,0.04432737]
[1720009869080,0.3457,60381.0,60372.0,0.04432737]
[1720009869081,0.40608105,60374.0,60372.0,0.04432737]
[1720009869311,0.43998739,60373.0,60372.0,0.04432737]
[1720009869459,0.43998739,60373.0,60370.0,0.04432737]
[1720009869664,0.40607314,60371.0,60368.0,0.04432737]
[1720009869869,0.2386,60369.0,60368.0,0.04432737]
[1720009870067,0.3651311,60369.0,60366.0,0.04432737]
[1720009870294,0.3651311,60369.0,60364.0,0.04432737]
[1720009870295,0.2386,60367.0,60364.0,0.04432737]
[1720009870502,0.2386,60367.0,60366.0,0.04432737]
[1720009870503,0.16746581,60367.0,60366.0,0.04432737]
[1720009870735,0.26460377,60367.0,60366.0,0.04432737]
[1720009870933,0.26450377,60367.0,60366.0,0.04432737]
[1720009871335,0.26450377,60367.0,60360.0,0.04432737]
[1720009871539,0.2386,60361.0,60360.0,0.04432737]
[1720009871783,0.2386,60361.0,60350.0,0.000913]
[1720009871784,0.0457,60360.0,60350.0,0.000913]
[1720009871986,0.40602754,60355.0,60350.0,0.000913]
[1720009872288,0.40602754,60355.0,60346.0,0.04432737]
[1720009872289,0.16727004,60353.0,60346.0,0.04432737]
[1720009872605,0.2386,60347.0,60346.0,0.04432737]
[1720009872732,0.3385,60347.0,60344.0,0.04432737]
[1720009872932,0.33064702,60354.0,60340.0,0.039948]
[1720009872933,0.2386,60345.0,60340.0,0.04432737]
[1720009873173,0.2386,60345.0,60336.0,0.039948]
[1720009873174,0.2386,60345.0,60342.0,0.04432737]
[1720009873379,0.2386,60343.0,60342.0,0.04432737]
[1720009873595,0.3386,60343.0,60342.0,0.04432737]
[1720009874737,0.3386,60343.0,60338.0,0.04432737]
[1720009875037,0.1,60343.0,60342.0,0.003]
[1720009875338,0.3386,60343.0,60342.0,0.005]
[1720009875545,0.37703,60343.0,60342.0,0.005]
[1720009875926,0.37703,60343.0,60334.0,0.04432737]
[1720009876102,0.2386,60337.0,60331.0,0.04432737]
[1720009876308,0.4772,60332.0,60326.0,0.000924]
[1720009876513,0.2843,60327.0,60314.0,0.04570102]
[1720009876735,0.123,60326.0,60316.0,0.04432737]
[1720009876940,0.1247142,60326.0,60317.0,0.04432737]
[1720009877257,0.1247142,60326.0,60314.0,0.00137365]
[1720009877258,0.2386,60318.0,60314.0,0.00137365]
[1720009877452,0.26246,60318.0,60314.0,0.00137365]
[1720009877656,0.26246,60318.0,60317.0,0.04432737]
[1720009878285,0.26246,60318.0,60314.0,0.00137365]
[1720009878286,0.26236,60318.0,60314.0,0.00137365]
[1720009878483,0.12585582,60315.0,60314.0,0.00137365]
[1720009878713,0.12603288,60315.0,60314.0,0.00137365]
[1720009878877,0.28633168,60315.0,60314.0,0.00137365]
[1720009879083,0.3,60313.0,60306.0,0.009185]
[1720009879283,0.2386,60307.0,60306.0,0.009185]
[1720009879499,0.3386,60307.0,60306.0,0.009185]
[1720009879662,0.3404142,60307.0,60306.0,0.009185]
[1720009879876,0.3904855,60307.0,60306.0,0.009185]
[1720009880273,0.3404142,60307.0,60306.0,0.009185]
[1720009880495,0.3404142,60307.0,60300.0,4e-05]
[1720009880496,1.039313,60307.0,60300.0,4e-05]
[1720009880705,0.4772,60301.0,60297.0,0.009185]
[1720009880911,0.20018195,60300.0,60297.0,0.009185]
[1720009881126,0.1023082,60299.0,60297.0,0.009185]
[1720009881360,0.2999,60297.0,60286.0,0.04432737]
[1720009881562,0.2386,60292.0,60286.0,0.04432737]
[1720009881738,0.2386,60292.0,60284.0,0.05351237]
[1720009881739,0.28101749,60292.0,60284.0,0.05351237]
[1720009881944,0.28101749,60292.0,60284.0,0.009185]
[1720009881945,0.54101864,60292.0,60284.0,0.009185]
[1720009882268,0.04166355,60291.0,60284.0,0.009185]
[1720009882567,0.2386,60285.0,60284.0,0.009185]
[1720009882798,0.38026355,60285.0,60284.0,0.009185]
[1720009882928,0.4361689,60285.0,60284.0,0.009185]
[1720009883550,0.4590689,60285.0,60284.0,0.009185]
[1720009883938,0.38201267,60285.0,60284.0,0.009185]
[1720009884124,0.1,60285.0,60284.0,0.009185]
[1720009884564,0.2386,60288.0,60286.0,0.039948]
[1720009884565,0.1,60287.0,60286.0,0.039948]
[1720009884764,0.09995328,60287.0,60286.0,0.039948]
[1720009884977,0.09985328,60287.0,60286.0,0.274048]
[1720009885145,0.15567263,60309.0,60297.0,0.039948]
[1720009885352,0.2386,60304.0,60297.0,0.039948]
[1720009885555,0.2386,60299.0,60296.0,0.039948]
[1720009885789,0.298,60305.0,60294.0,0.04432737]
[1720009886020,0.15567263,60309.0,60286.0,0.3943988]
[1720009886021,0.298,60298.0,60292.0,0.04432737]
[1720009886230,0.298,60298.0,60286.0,0.2341]
[1720009886231,0.08015582,60296.0,60288.0,0.04432737]
[1720009886541,0.08015582,60296.0,60284.0,0.009185]
[1720009886542,0.1602988,60295.0,60287.0,0.04432737]
[1720009886674,0.1602988,60295.0,60284.0,0.009185]
[1720009886675,0.298,60289.0,60284.0,0.009185]
[1720009886878,0.298,60289.0,60286.0,0.04432737]
[1720009887080,0.0999,60288.0,60286.0,0.04432737]
[1720009887282,0.0049,60287.0,60286.0,0.04632737]
[1720009887486,0.0049,60287.0,60286.0,0.002]
[1720009887687,0.06346664,60287.0,60284.0,0.009185]
[1720009888061,0.298,60285.0,60284.0,0.009185]
[1720009888435,0.3274,60285.0,60284.0,0.009185]
[1720009888650,0.39212422,60285.0,60284.0,0.009185]
[1720009888805,0.39202422,60285.0,60284.0,0.009185]
[1720009888991,0.55238728,60285.0,60284.0,0.009185]
[1720009889186,0.61056306,60285.0,60284.0,0.009185]
[1720009889445,0.65425365,60285.0,60284.0,0.009185]
[1720009889649,0.49389059,60285.0,60284.0,0.009185]
[1720009890146,1.25398939,60285.0,60284.0,0.009185]
[1720009890348,1.25398939,60285.0,60274.0,0.000924]
[1720009890349,0.2999,60283.0,60274.0,0.000924]
[1720009890492,0.298,60276.0,60274.0,0.000924]
[1720009890689,0.44449088,60276.0,60274.0,0.000924]
[1720009890895,0.14538484,60276.0,60275.0,0.049133]
[1720009891100,0.14538484,60276.0,60275.0,0.009185]
[1720009891101,0.10187568,60276.0,60275.0,0.009185]
[1720009891350,0.14528484,60276.0,60275.0,0.049133]
[1720009891558,0.10167568,60276.0,60275.0,0.050133]
[1720009891758,0.00187568,60276.0,60275.0,0.049133]
[1720009891940,0.00187568,60276.0,60275.0,0.33186037]
[1720009892117,0.00287568,60276.0,60275.0,0.53215917]
[1720009892319,0.001,60276.0,60275.0,0.53215917]
[1720009892743,0.05403546,60294.0,60286.0,0.039948]
[1720009893073,0.298,60295.0,60291.0,0.0001]
[1720009893324,0.298,60295.0,60293.0,0.039948]
[1720009893489,0.45367263,60302.0,60292.0,0.1116]
[1720009893668,0.1,60301.0,60292.0,0.151548]
[1720009893882,0.07433714,60300.0,60292.0,0.1116]
[1720009894199,0.01,60295.0,60293.0,0.039948]
[1720009894412,0.024,60295.0,60293.0,0.039948]
[1720009894955,0.07433714,60300.0,60293.0,0.039948]
[1720009895162,0.011,60300.0,60296.0,0.039948]
[1720009895561,0.011,60300.0,60292.0,0.1136]
[1720009895859,0.011,60300.0,60292.0,0.002]
[1720009895860,0.08015582,60296.0,60292.0,0.002]
[1720009896059,0.298,60293.0,60292.0,0.0019]
[1720009896367,0.298,60293.0,60292.0,0.0009]
[1720009896368,0.4812988,60293.0,60292.0,0.0009]
[1720009896570,0.5812988,60293.0,60281.0,0.04432737]
[1720009896843,0.21962714,60292.0,60281.0,0.04432737]
[1720009897048,0.298,60286.0,60281.0,0.04432737]
[1720009897446,0.1,60285.0,60281.0,0.04432737]
[1720009898151,0.00188037,60284.0,60281.0,0.04432737]
[1720009898325,0.00188037,60284.0,60281.0,0.05132737]
[1720009898525,0.04186841,60284.0,60281.0,0.05632737]
[1720009898728,0.04186841,60284.0,60281.0,0.04932737]
[1720009898729,0.00188037,60284.0,60281.0,0.04932737]
[1720009898930,0.00188037,60284.0,60281.0,0.08927537]
[1720009899131,0.00188037,60284.0,60283.0,0.039948]
[1720009899495,0.102,60285.0,60284.0,0.151448]
[1720009899496,0.1,60285.0,60284.0,0.151448]
[1720009899697,0.1,60292.0,60284.0,0.151448]
[1720009899868,0.1423029,60292.0,60290.0,0.039948]
[1720009900093,0.1423029,60292.0,60291.0,0.039948]
[1720009900094,0.1,60292.0,60291.0,0.039948]
[1720009900246,0.1,60299.0,60293.0,0.039948]
[1720009900448,0.1,60299.0,60294.0,0.039948]
[1720009900812,0.1,60299.0,60295.0,0.039948]
[1720009901016,0.15567263,60304.0,60296.0,0.039948]
[1720009901017,0.0248918,60304.0,60296.0,0.039948]
[1720009901253,0.0248918,60304.0,60299.0,0.039948]
[1720009901254,0.03138665,60303.0,60299.0,0.039948]
[1720009901455,0.01581939,60302.0,60299.0,0.039948]
[1720009901588,0.01581939,60302.0,60297.0,0.1103]
[1720009901797,0.002,60299.0,60297.0,0.1103]
[1720009901992,0.01581939,60298.0,60297.0,0.1103]
[1720009902178,0.01581939,60298.0,60297.0,0.150248]
[1720009902377,0.01581939,60298.0,60297.0,0.1103]
[1720009902634,0.01620443,60298.0,60297.0,0.1103]
[1720009902834,0.01620443,60298.0,60297.0,0.1102]
[1720009903546,0.07088603,60298.0,60297.0,0.1102]
[1720009903722,0.07088603,60298.0,60295.0,0.001]
[1720009903723,0.12066946,60298.0,60295.0,0.001]
[1720009903926,0.11620443,60297.0,60295.0,0.001]
[1720009904260,0.07082121,60296.0,60295.0,0.001]
[1720009904457,0.07082121,60296.0,60293.0,0.04432737]
[1720009904688,0.07082121,60295.0,60293.0,0.04432737]
[1720009904846,0.17082121,60295.0,60293.0,0.04432737]
[1720009905040,0.07082121,60294.0,60293.0,0.04432737]
[1720009905265,0.17082121,60294.0,60293.0,0.04432737]
[1720009905820,0.18245292,60294.0,60291.0,0.04432737]
[1720009905990,0.298,60292.0,60291.0,0.04432737]
[1720009906213,0.48045169,60292.0,60291.0,0.04432737]
[1720009907242,0.48045169,60292.0,60291.0,0.08427537]
[1720009907436,0.12213083,60292.0,60291.0,0.04432737]
[1720009907664,0.08324468,60292.0,60291.0,0.04422737]
[1720009907863,0.1,60298.0,60293.0,0.08417537]
[1720009908063,0.004,60294.0,60293.0,0.08417537]
[1720009908264,0.08408267,60294.0,60293.0,0.08417537]
[1720009908486,0.06111423,60294.0,60293.0,0.08417537]
[1720009908689,0.08521767,60294.0,60293.0,0.08417537]
[1720009909052,0.08521771,60297.0,60296.0,0.039948]
[1720009909258,0.08521663,60297.0,60296.0,0.039948]
[1720009909777,0.08521663,60297.0,60293.0,0.04422737]
[1720009909778,0.08521663,60297.0,60294.0,0.039948]
[1720009909983,0.08521663,60297.0,60293.0,0.04422737]
[1720009909984,0.08521663,60296.0,60293.0,0.04522737]
[1720009910179,0.00084,60294.0,60293.0,0.04522737]
[1720009910386,0.00084,60294.0,60293.0,0.04512737]
[1720009910387,0.08605663,60294.0,60293.0,0.04512737]
[1720009910821,0.08605663,60294.0,60293.0,0.04412737]
[1720009911022,0.10985343,60294.0,60293.0,0.04412737]
[1720009911233,0.18605663,60294.0,60293.0,0.04412737]
[1720009911801,0.2611388,60294.0,60287.0,0.04412737]
[1720009912001,0.298,60288.0,60287.0,0.04412737]
[1720009912206,0.48082132,60288.0,60287.0,0.04412737]
[1720009912406,0.48082132,60288.0,60283.0,0.04412737]
[1720009912407,0.54120345,60288.0,60283.0,0.04412737]
[1720009912631,0.54120345,60288.0,60281.0,0.15285137]
[1720009912632,0.18282132,60287.0,60281.0,0.15285137]
[1720009912829,0.08282132,60286.0,60281.0,0.15285137]
[1720009914090,0.08282132,60286.0,60281.0,0.000924]
[1720009914223,0.05432035,60285.0,60281.0,0.000924]
[1720009914432,0.08282132,60284.0,60281.0,0.000924]
[1720009914607,0.18282132,60284.0,60281.0,0.000924]
[1720009914815,0.1,60284.0,60281.0,0.000924]
[1720009915066,0.0827305,60283.0,60281.0,0.000924]
[1720009915285,0.47921547,60282.0,60281.0,0.000924]
[1720009915497,0.27921547,60282.0,60281.0,0.000924]
[1720009915621,0.38359455,60282.0,60281.0,0.001924]
[1720009916081,0.58510958,60282.0,60281.0,0.000924]
[1720009916488,0.58510958,60282.0,60281.0,0.001924]
[1720009917036,0.4807305,60282.0,60281.0,0.001924]
[1720009917253,0.4947305,60282.0,60281.0,0.002924]
[1720009917428,0.60017285,60282.0,60281.0,0.002924]
[1720009917565,0.58607285,60282.0,60281.0,0.001924]
[1720009917972,0.51144235,60282.0,60281.0,0.002924]
[1720009918179,0.53408976,60282.0,60281.0,0.002924]
[1720009918380,0.51144235,60282.0,60281.0,0.002924]
[1720009918604,0.53408963,60282.0,60281.0,0.001924]
[1720009919868,0.43464728,60282.0,60281.0,0.001924]
[1720009920080,0.42064728,60282.0,60281.0,0.000924]
[1720009920481,0.44164728,60282.0,60281.0,0.002924]
[1720009920917,0.44202285,60282.0,60281.0,0.002924]
[1720009921489,0.44227277,60282.0,60281.0,0.002924]
[1720009921666,0.53784421,60282.0,60281.0,0.002924]
[1720009922068,0.44227277,60282.0,60281.0,0.002924]
[1720009922676,0.46527277,60282.0,60281.0,0.002924]
[1720009924716,0.44227277,60282.0,60281.0,0.002924]
[1720009925524,0.50376622,60282.0,60281.0,0.042872]
[1720009925738,0.20576622,60282.0,60281.0,0.002924]
[1720009925940,0.20576622,60282.0,60281.0,0.012872]
[1720009926144,0.20576622,60282.0,60281.0,0.002924]
[1720009926659,0.5270409,60282.0,60281.0,0.002924]
[1720009927585,0.50395738,60282.0,60281.0,0.002924]
[1720009928023,0.60868167,60282.0,60281.0,0.002924]
[1720009928163,0.63168167,60282.0,60281.0,0.002924]
[1720009929137,0.63168167,60282.0,60275.0,0.009185]
[1720009929138,1.09198047,60282.0,60275.0,0.009185]
[1720009929287,0.61792542,60281.0,60275.0,0.009185]
[1720009929489,0.08495738,60280.0,60275.0,0.009185]
[1720009929729,0.58785697,60279.0,60275.0,0.009185]
[1720009929928,0.18326179,60278.0,60275.0,0.009185]
[1720009930093,0.2387,60276.0,60275.0,0.009185]
[1720009930296,0.64021306,60276.0,60275.0,0.009185]
[1720009930483,0.64021306,60276.0,60275.0,0.010185]
[1720009930681,0.64011306,60276.0,60275.0,0.011185]
[1720009931164,0.52264729,60276.0,60275.0,0.010185]
[1720009931564,0.68486053,60276.0,60275.0,0.011185]
[1720009931858,0.53664729,60276.0,60275.0,0.011185]
[1720009932187,0.70341038,60276.0,60275.0,0.011185]
[1720009932580,0.53664729,60276.0,60275.0,0.010185]
[1720009932784,0.82677809,60276.0,60275.0,0.010185]
[1720009932917,0.82677809,60276.0,60268.0,0.009185]
[1720009932918,0.3,60274.0,60268.0,0.009185]
[1720009933122,0.40540088,60271.0,60268.0,0.009185]
[1720009933350,0.42135617,60271.0,60268.0,0.009185]
[1720009933525,0.57231813,60271.0,60268.0,0.009185]
[1720009934142,0.67661739,60271.0,60268.0,0.009185]
[1720009934540,0.54865543,60271.0,60268.0,0.009185]
[1720009934900,0.52565543,60271.0,60270.0,0.158533]
[1720009935464,0.29495543,60271.0,60270.0,0.293533]
[1720009935669,0.108,60271.0,60270.0,0.293533]
[1720009935868,0.30299971,60271.0,60270.0,0.293533]
[1720009936389,0.30299971,60271.0,60270.0,0.253585]
[1720009936594,0.34811226,60271.0,60270.0,0.253585]
[1720009936972,0.34811226,60271.0,60270.0,0.118585]
[1720009937174,0.16011255,60271.0,60270.0,0.009185]
[1720009938412,0.115,60271.0,60270.0,0.049133]
[1720009938774,0.16664155,60276.0,60275.0,0.35437537]
[1720009938985,0.16664155,60276.0,60275.0,0.51467417]
[1720009939544,0.0001,60288.0,60287.0,0.08407537]
[1720009939758,0.10413963,60288.0,60287.0,0.08407537]
[1720009939955,0.12607005,60288.0,60287.0,0.08407537]
[1720009940158,0.12607005,60288.0,60287.0,0.04412737]
[1720009940354,0.18616269,60288.0,60287.0,0.08407537]
[1720009941104,0.19516269,60288.0,60287.0,0.04512737]
[1720009941432,0.19516269,60288.0,60287.0,0.08507537]
[1720009941605,0.29445763,60288.0,60287.0,0.04512737]
[1720009941751,0.32390339,60288.0,60287.0,0.04512737]
[1720009942351,0.32390339,60288.0,60287.0,0.001]
[1720009942568,0.33190339,60288.0,60287.0,0.002]
[1720009942772,0.30245763,60288.0,60287.0,0.002]
[1720009943325,0.46275643,60288.0,60277.0,0.04412737]
[1720009943478,0.2983,60280.0,60277.0,0.04412737]
[1720009943674,0.2983,60280.0,60275.0,0.103]
[1720009943675,0.18154069,60279.0,60278.0,0.04412737]
[1720009943888,0.32320321,60279.0,60278.0,0.04412737]
[1720009944302,0.32320321,60279.0,60277.0,0.04412737]
[1720009944532,0.24166252,60279.0,60278.0,0.04412737]
[1720009944732,0.24166252,60279.0,60277.0,0.002]
[1720009944733,0.24262711,60279.0,60277.0,0.002]
[1720009945087,0.08061528,60278.0,60277.0,0.002]
[1720009945224,0.08062445,60278.0,60277.0,0.002]
[1720009945417,0.24092325,60278.0,60277.0,0.002]
[1720009945759,0.0475,60277.0,60270.0,0.009185]
[1720009945991,0.26392969,60276.0,60270.0,0.009185]
[1720009946103,0.02122857,60275.0,60270.0,0.009185]
[1720009946343,0.04422857,60274.0,60270.0,0.009185]
[1720009946574,0.02122857,60273.0,60270.0,0.009185]
[1720009946946,0.02122857,60272.0,60270.0,0.009185]
[1720009947155,0.08063089,60271.0,60270.0,0.009185]
[1720009948561,0.1,60273.0,60270.0,0.009185]
[1720009948724,0.01769477,60271.0,60270.0,0.010185]
[1720009948968,0.0739656,60271.0,60270.0,0.051133]
[1720009949185,0.0739656,60271.0,60270.0,0.011185]
[1720009949407,0.0670656,60271.0,60270.0,0.010185]
[1720009949607,0.0669656,60271.0,60270.0,0.010185]
[1720009949808,0.09032588,60271.0,60270.0,0.011185]
[1720009949986,0.14712142,60271.0,60270.0,0.011185]
[1720009950202,0.17012142,60271.0,60270.0,0.011185]
[1720009950429,0.27012142,60271.0,60270.0,0.011185]
[1720009950763,0.36498773,60271.0,60270.0,0.011185]
[1720009950988,0.44513071,60271.0,60270.0,0.011185]
[1720009951190,0.42847452,60271.0,60270.0,0.010185]
[1720009951413,0.42847811,60271.0,60270.0,0.011185]
[1720009951686,0.26883191,60271.0,60270.0,0.011185]
[1720009951852,0.22251683,60271.0,60270.0,0.011185]
[1720009952261,0.24807402,60271.0,60270.0,0.011185]
[1720009952601,0.24807402,60271.0,60270.0,0.296333]
[1720009953058,0.24807402,60271.0,60270.0,0.256385]
[1720009953418,0.28954536,60271.0,60270.0,0.256385]
[1720009953858,0.24807402,60271.0,60270.0,0.256385]